bitfinex-derivatives/quotes_SOLF0:USTF0_20250516
["timestamp","ask_amount","ask_price","bid_price","bid_amount"]
[1747396211358,6.79183991,173.1,173.0,5.7779]
[1747396211653,6.79183991,173.1,173.01,5.7774]
[1747396212561,5.7764,173.05,173.01,5.7774]
[1747396213959,6.79183991,173.1,172.99,5.5467]
[1747396214152,6.79183991,173.07,172.92,6.79183991]
[1747396214353,6.79183991,173.07,172.93,1.8831]
[1747396214555,5.7782,173.0,172.95,5.7794]
[1747396215359,5.7783,172.99,172.95,5.7794]
[1747396215958,5.7783,172.99,172.93,1.8831]
[1747396216859,5.7783,172.99,172.95,5.7793]
[1747396217048,5.7787,172.98,172.95,5.7793]
[1747396217664,11.55,173.09,172.93,1.8831]
[1747396217958,6.79183991,173.1,172.96,6.79183991]
[1747396218263,6.79183991,173.1,172.98,5.7783]
[1747396218461,6.79183991,173.1,172.97,3.9417]
[1747396219059,6.79183991,173.1,172.99,5.778]
[1747396219563,5.7765,173.05,173.0,5.7779]
[1747396219959,6.79183991,173.1,172.97,3.9417]
[1747396220155,17.39,173.16,172.99,6.79183991]
[1747396220362,6.79183991,173.17,173.02,6.79183991]
[1747396220556,1.05139025,173.15,173.02,6.79183991]
[1747396220858,5.7745,173.11,173.02,6.75888527]
[1747396221159,5.7743,173.11,173.06,5.7759]
[1747396221558,5.7743,173.11,173.02,6.75883186]
[1747396221862,6.75883186,173.17,173.02,6.75883186]
[1747396222460,5.7741,173.12,173.07,5.7755]
[1747396222662,5.7741,173.12,173.02,6.75883186]
[1747396223466,5.7744,173.11,173.07,5.7753]
[1747396223761,6.75883186,173.17,173.07,5.7753]
[1747396223963,6.75883186,173.17,173.02,6.75883186]
[1747396224163,235.47182998,173.21,173.05,6.75883186]
[1747396224363,6.75883186,173.18,173.06,5.6212]
[1747396224954,6.75883186,173.18,173.07,5.7754]
[1747396225154,6.75883186,173.18,173.06,5.6212]
[1747396225466,5.7742,173.12,173.06,11.3971]
[1747396225658,6.75883186,173.18,173.06,5.6212]
[1747396225862,6.75883186,173.15,172.82,23.1348]
[1747396226165,6.76466955,173.09,172.97,5.7787]
[1747396227263,6.76466955,173.09,172.99,5.7782]
[1747396227463,11.5467,173.14,172.99,5.7782]
[1747396227464,6.76466955,173.12,172.99,5.7782]
[1747396228568,5.7765,173.05,173.0,5.7779]
[1747396229762,6.76466955,173.12,172.98,3.7121]
[1747396230070,11.5467,173.14,172.99,1.8838]
[1747396230262,5.7761,173.06,173.02,5.7772]
[1747396230566,5.7761,173.06,172.99,1.8838]
[1747396230883,5.7761,173.06,173.01,5.7773]
[1747396231166,5.7761,173.06,172.99,1.8838]
[1747396232066,5.7764,173.05,173.01,5.7773]
[1747396232266,5.7764,173.05,172.99,1.8838]
[1747396232768,5.7764,173.05,173.02,5.777]
[1747396234170,5.7767,173.04,173.01,5.7775]
[1747396234373,6.76466955,173.12,172.99,1.8838]
[1747396234868,5.7765,173.05,173.0,5.7777]
[1747396235061,5.7765,173.05,172.99,1.8838]
[1747396235259,6.76466955,173.12,172.99,1.8838]
[1747396235561,6.76466955,173.12,173.02,5.777]
[1747396236174,5.7759,173.07,173.02,5.777]
[1747396237070,5.7759,173.07,173.03,5.7768]
[1747396237471,5.7754,173.08,173.03,5.7768]
[1747396238072,5.7757,173.07,173.03,5.7768]
[1747396238572,6.76466955,173.12,173.02,5.7772]
[1747396238768,6.76466955,173.12,172.99,1.8838]
[1747396238968,6.76466955,173.12,173.01,5.7775]
[1747396239168,5.7762,173.06,173.01,5.7775]
[1747396239773,6.76466955,173.12,172.99,1.8838]
[1747396240374,6.76466955,173.15,173.0,6.76466955]
[1747396241575,5.7749,173.09,173.0,6.76466955]
[1747396241768,6.76466955,173.15,173.0,6.76466955]
[1747396242176,5.7755,173.08,173.03,5.7767]
[1747396243076,6.76466955,173.15,173.02,5.7772]
[1747396243575,5.7758,173.07,173.02,5.7772]
[1747396245570,5.7754,173.08,173.0,6.76466955]
[1747396246272,5.7754,173.08,173.04,5.7765]
[1747396246477,6.76466955,173.15,173.04,5.7765]
[1747396246880,5.7755,173.08,173.04,5.7765]
[1747396247074,6.76466955,173.15,173.05,5.776]
[1747396247576,5.7748,173.1,173.06,5.7759]
[1747396249681,5.7748,173.1,173.05,5.7761]
[1747396250569,5.775,173.09,173.05,5.7761]
[1747396250776,5.775,173.09,173.06,5.7759]
[1747396251979,5.775,173.09,173.05,5.7761]
[1747396252182,6.76466955,173.15,173.0,6.76466955]
[1747396252678,6.76466955,173.15,173.03,5.7767]
[1747396253474,5.7756,173.07,173.03,5.7767]
[1747396254281,6.76466955,173.15,173.0,6.76466955]
[1747396254479,6.76466955,173.18,173.03,6.76466955]
[1747396255088,6.76466955,173.18,173.06,6.76466955]
[1747396255385,6.76466955,173.18,173.07,3.6341]
[1747396255572,5.7735,173.14,173.1,5.7744]
[1747396255772,11.5427,173.2,173.07,3.6341]
[1747396256184,11.5427,173.2,173.09,5.7747]
[1747396257384,5.7734,173.14,173.1,5.7745]
[1747396258090,5.7736,173.13,173.09,5.7748]
[1747396259188,5.7734,173.14,173.09,5.7748]
[1747396259792,5.7737,173.13,173.09,5.7748]
[1747396260090,6.76466955,173.18,173.03,6.76466955]
[1747396260283,6.76466955,173.18,173.03,10.63576955]
[1747396260490,5.7748,173.1,173.03,10.63576955]
[1747396260691,6.76466955,173.18,173.05,5.7761]
[1747396260890,6.76466955,173.18,173.03,10.63576955]
[1747396261091,6.76466955,173.15,173.03,3.8711]
[1747396261292,6.76466955,173.15,173.04,5.7765]
[1747396261591,5.7752,173.09,173.04,5.7765]
[1747396261792,5.7752,173.09,173.05,5.7763]
[1747396261993,5.7752,173.09,173.03,3.8711]
[1747396262592,6.76466955,173.15,173.03,3.8711]
[1747396263286,5.7762,173.06,173.03,3.8711]
[1747396264497,5.7758,173.07,173.03,3.8711]
[1747396264694,5.7758,173.07,173.03,9.648]
[1747396265497,5.776,173.06,173.03,9.648]
[1747396265896,5.776,173.06,173.03,3.8711]
[1747396266089,5.7763,173.05,173.03,3.8711]
[1747396266289,11.5468,173.14,173.03,3.8711]
[1747396266690,5.7758,173.07,173.03,3.8711]
[1747396267396,5.7758,173.07,173.03,9.648]
[1747396267998,5.7762,173.06,173.03,3.8711]
[1747396268693,11.5468,173.14,173.03,3.8711]
[1747396268898,6.76466955,173.12,173.0,5.7777]
[1747396269292,5.7768,173.04,172.99,7.6088]
[1747396269790,5.7768,173.04,172.99,1.8307]
[1747396269993,5.7768,173.04,173.0,5.7777]
[1747396273195,6.76466955,173.12,173.0,5.7777]
[1747396273401,5.777,173.03,173.0,5.7777]
[1747396273599,6.76466955,173.12,172.99,1.8307]
[1747396273806,11.5487,173.11,172.99,1.8307]
[1747396274195,11.5487,173.11,172.99,7.6087]
[1747396274494,5.7769,173.04,172.99,7.6087]
[1747396274691,11.5487,173.11,172.99,1.8307]
[1747396274903,11.5487,173.11,173.01,5.7776]
[1747396275598,5.7766,173.05,173.0,5.7778]
[1747396279117,5.7766,173.05,172.99,1.8307]
[1747396279118,5.7761,173.06,172.99,1.8307]
[1747396279411,11.5487,173.11,172.99,1.8307]
[1747396279712,11.5487,173.11,173.01,5.7774]
[1747396280306,5.7762,173.06,173.01,5.7774]
[1747396281412,11.5487,173.11,173.01,5.7774]
[1747396282415,5.7762,173.06,173.01,5.7774]
[1747396282911,11.5487,173.11,173.01,5.7774]
[1747396283414,5.7762,173.06,173.01,5.7774]
[1747396285117,5.7763,173.05,173.01,5.7774]
[1747396285716,5.7763,173.05,173.0,5.7778]
[1747396285917,5.7763,173.05,172.99,1.8307]
[1747396286617,5.7766,173.04,172.99,1.8307]
[1747396286818,6.76466955,173.12,172.97,6.76466955]
[1747396287010,6.76466955,173.09,172.95,3.7545]
[1747396287413,5.7772,173.03,172.98,5.7783]
[1747396288415,5.7774,173.02,172.98,5.7783]
[1747396288819,5.7777,173.01,172.98,5.7783]
[1747396289020,5.7777,173.01,172.96,1.9627]
[1747396289521,5.7777,173.01,172.98,5.7784]
[1747396290321,6.76466955,173.09,172.96,1.9627]
[1747396290512,6.76466955,173.06,172.96,1.9627]
[1747396290917,6.76466955,173.06,172.95,3.7545]
[1747396291320,5.7785,172.99,172.95,3.7545]
[1747396291518,5.7785,172.99,172.95,9.5341]
[1747396292121,5.7781,173.0,172.95,9.5341]
[1747396292323,6.76466955,173.06,172.95,9.5341]
[1747396293121,6.76466955,173.06,172.95,3.7545]
[1747396293826,6.76466955,173.03,172.9,1.9503]
[1747396294123,5.7791,172.97,172.9,1.9503]
[1747396294323,6.76466955,173.03,172.9,1.9503]
[1747396294716,6.76466955,173.03,172.91,6.76466955]
[1747396294911,5.7784,172.99,172.94,5.7799]
[1747396295413,6.76466955,173.06,172.92,1.8523]
[1747396295617,5.7792,172.97,172.92,7.6329]
[1747396296026,5.7788,172.98,172.93,5.7803]
[1747396296316,18.31676955,173.06,172.92,1.8523]
[1747396296522,5.7791,172.97,172.92,7.6327]
[1747396296717,6.76466955,173.06,172.92,1.8523]
[1747396296923,6.76466955,173.03,172.92,1.8523]
[1747396297625,5.7792,172.97,172.92,7.6328]
[1747396297816,6.76466955,173.03,172.92,1.8523]
[1747396298220,6.76466955,173.06,172.92,8.61696955]
[1747396298418,6.76466955,173.09,172.92,8.61696955]
[1747396298614,5.7775,173.02,172.92,8.61696955]
[1747396299327,5.7775,173.02,172.97,5.7788]
[1747396301129,5.7771,173.03,172.98,5.7786]
[1747396301523,6.76466955,173.09,172.98,5.7786]
[1747396301834,5.7775,173.02,172.97,5.7789]
[1747396302127,6.76466955,173.09,172.92,8.61696955]
[1747396302325,5.7779,173.01,172.96,5.7792]
[1747396302525,6.76466955,173.09,172.96,5.7792]
[1747396303934,6.76466955,173.09,172.95,5.7795]
[1747396304733,6.76466955,173.09,172.92,8.61696955]
[1747396305235,1.05470362,173.08,172.92,8.61696955]
[1747396305441,5.7774,173.02,172.92,8.61696955]
[1747396305634,6.76466955,173.09,172.92,8.61696955]
[1747396306030,5.7773,173.02,172.92,8.61696955]
[1747396306330,6.76466955,173.09,172.92,8.61696955]
[1747396306531,6.76466955,173.09,172.98,5.7784]
[1747396307134,5.7773,173.03,172.98,5.7784]
[1747396307436,11.5496,173.1,172.95,6.76466955]
[1747396307634,5.7766,173.04,172.96,3.7542]
[1747396307835,6.76466955,173.09,172.96,3.7542]
[1747396308539,6.76466955,173.09,172.97,5.7789]
[1747396308736,6.76466955,173.09,172.96,3.7542]
[1747396308935,6.76466955,173.06,172.96,3.7542]
[1747396309135,6.76466955,173.06,172.96,1.8704]
[1747396309538,5.7777,173.01,172.96,7.6496]
[1747396310640,5.7777,173.01,172.97,5.779]
[1747396311138,6.76466955,173.06,172.96,1.8704]
[1747396311346,6.76466955,173.09,172.96,1.8704]
[1747396311638,6.76466955,173.09,172.97,1.8453]
[1747396312034,5.7767,173.04,173.0,5.7779]
[1747396312237,6.76466955,173.09,173.0,5.7779]
[1747396312441,5.7765,173.05,173.0,5.7779]
[1747396312843,6.76466955,173.09,173.0,5.7779]
[1747396313441,5.7766,173.05,173.0,5.7779]
[1747396313940,6.76466955,173.12,173.0,5.7779]
[1747396314643,5.7765,173.05,173.0,5.7779]
[1747396315942,5.7767,173.04,173.0,5.7779]
[1747396317041,5.777,173.03,172.99,5.7782]
[1747396317248,6.76466955,173.12,172.98,1.8448]
[1747396317435,5.7772,173.03,172.98,7.6233]
[1747396317838,6.76466955,173.12,172.98,7.6233]
[1747396318031,5.7773,173.03,172.98,7.6233]
[1747396318242,6.76466955,173.12,172.98,7.6233]
[1747396318546,5.7772,173.03,172.98,7.6233]
[1747396320543,5.7772,173.03,172.99,5.7782]
[1747396320743,5.7772,173.03,172.98,1.8448]
[1747396320946,11.5487,173.11,172.98,1.8448]
[1747396321145,5.7766,173.05,173.01,5.7776]
[1747396321345,11.5487,173.11,172.98,1.8448]
[1747396321843,11.5487,173.11,173.02,5.7771]
[1747396322244,5.7763,173.05,173.02,5.7771]
[1747396322944,5.7761,173.06,173.02,5.7771]
[1747396323545,5.7763,173.05,173.02,5.7771]
[1747396323945,6.76466955,173.12,173.01,5.7775]
[1747396324145,5.7768,173.04,172.98,1.8448]
[1747396324643,5.7768,173.04,173.0,5.7779]
[1747396324946,6.76466955,173.12,172.98,7.6233]
[1747396325141,6.76466955,173.09,172.98,7.6233]
[1747396325340,5.7775,173.02,172.98,1.8448]
[1747396326744,5.7775,173.02,172.98,7.6234]
[1747396326944,5.7776,173.01,172.98,1.8448]
[1747396327646,5.778,173.0,172.98,1.8448]
[1747396327945,6.76466955,173.09,172.98,1.8448]
[1747396328546,5.7778,173.01,172.98,1.8448]
[1747396330346,6.76466955,173.09,172.98,7.6234]
[1747396330841,5.7773,173.03,172.98,7.6234]
[1747396331039,6.76466955,173.09,172.98,7.6234]
[1747396331847,6.76466955,173.09,172.98,1.8448]
[1747396334049,5.7782,173.0,172.96,1.8704]
[1747396334548,11.5507,173.08,172.96,1.8704]
[1747396334949,6.76466955,173.06,172.96,1.8704]
[1747396335446,6.76466955,173.06,172.94,1.9507]
[1747396335746,5.7788,172.98,172.94,1.9507]
[1747396336549,5.7788,172.98,172.94,7.7305]
[1747396336852,5.7784,172.99,172.94,7.7305]
[1747396337051,5.7784,172.99,172.94,1.9507]
[1747396337550,6.76466955,173.06,172.94,1.9507]
[1747396337953,5.7775,173.02,172.97,5.7788]
[1747396338252,6.76466955,173.06,172.97,5.7788]
[1747396338453,5.7783,173.0,172.95,5.7795]
[1747396338654,6.76466955,173.06,172.94,1.9507]
[1747396339049,5.7785,172.99,172.94,7.7305]
[1747396340755,6.76466955,173.03,172.94,1.9507]
[1747396340953,6.76466955,173.03,172.91,1.9362]
[1747396342453,5.7793,172.97,172.92,5.7805]
[1747396342654,6.76466955,173.03,172.91,1.9362]
[1747396342855,11.5534,173.04,172.92,1.8618]
[1747396343055,11.5534,173.04,172.93,5.7803]
[1747396344555,11.5534,173.04,172.92,1.8618]
[1747396345356,5.7796,172.96,172.92,1.8618]
[1747396345956,5.7797,172.95,172.92,1.8618]
[1747396347059,5.7794,172.96,172.92,1.8618]
[1747396349258,5.7794,172.96,172.92,7.6424]
[1747396349457,5.7791,172.97,172.92,7.6424]
[1747396349658,18.31806955,173.04,172.92,7.6424]
[1747396349960,5.7795,172.96,172.92,7.6424]
[1747396350561,5.7798,172.95,172.92,1.8618]
[1747396350951,6.76466955,173.04,172.92,1.8618]
[1747396351261,5.7802,172.94,172.92,1.8618]
[1747396352466,5.7803,172.93,172.86,6.76466955]
[1747396352660,5.7803,172.93,172.88,5.7818]
[1747396353463,5.7807,172.92,172.88,5.7818]
[1747396354166,6.76466955,172.98,172.85,5.6793]
[1747396354670,6.76466955,172.92,172.78,6.76466955]
[1747396355165,5.783,172.85,172.78,6.76466955]
[1747396355969,5.7827,172.86,172.78,6.76466955]
[1747396356270,5.7827,172.86,172.8,5.7845]
[1747396356470,5.7827,172.86,172.78,6.76466955]
[1747396356766,6.76466955,172.92,172.83,5.7833]
[1747396356970,6.76466955,172.95,172.81,6.76466955]
[1747396357161,5.7815,172.9,172.82,5.6662]
[1747396357358,5.7815,172.9,172.85,5.7827]
[1747396357555,5.7815,172.9,172.82,5.6662]
[1747396357771,5.7811,172.91,172.82,5.6662]
[1747396358168,6.76466955,172.98,172.84,6.76466955]
[1747396358473,5.7807,172.92,172.89,5.7815]
[1747396358677,6.76466955,172.98,172.84,6.76466955]
[1747396358973,6.76466955,172.98,172.89,5.7814]
[1747396359960,6.76466955,172.98,172.84,6.76466955]
[1747396360166,6.76466955,172.98,172.88,5.7819]
[1747396360575,5.7801,172.94,172.89,5.7816]
[1747396362078,6.76466955,172.98,172.9,5.7812]
[1747396362275,6.76466955,172.98,172.84,6.76466955]
[1747396362475,6.76466955,173.01,172.87,6.76466955]
[1747396362773,6.76466955,173.01,172.88,5.5905]
[1747396362979,6.76466955,173.04,172.88,5.5905]
[1747396363177,5.7781,173.0,172.94,5.7797]
[1747396363372,5.7781,173.0,172.9,6.76466955]
[1747396363676,5.7781,173.0,172.94,5.7797]
[1747396363973,5.7784,172.99,172.94,5.7797]
[1747396364981,5.7781,173.0,172.95,5.7796]
[1747396365175,5.7781,173.0,172.9,6.76466955]
[1747396365566,5.7784,172.99,172.93,5.7801]
[1747396366071,5.7788,172.98,172.92,5.7805]
[1747396366773,5.7785,172.99,172.93,5.7803]
[1747396367272,5.7788,172.98,172.92,5.7806]
[1747396367472,6.76466955,173.04,172.92,5.7806]
[1747396367777,5.7785,172.99,172.93,5.7803]
[1747396368480,5.7788,172.98,172.93,5.7803]
[1747396368678,6.76466955,173.04,172.93,5.7803]
[1747396369180,5.7782,173.0,172.94,5.7799]
[1747396369875,5.7784,172.99,172.93,5.7802]
[1747396371082,5.7787,172.98,172.93,5.7802]
[1747396371778,5.7787,172.98,172.94,5.7799]
[1747396372885,5.779,172.97,172.94,5.7799]
[1747396373984,5.779,172.97,172.93,5.7802]
[1747396374480,5.779,172.97,172.9,6.76466955]
[1747396374685,5.7788,172.98,172.9,6.76466955]
[1747396374887,6.76466955,173.04,172.9,6.76466955]
[1747396375783,6.76466955,173.04,172.94,5.7799]
[1747396376284,5.7788,172.98,172.94,5.7799]
[1747396377080,5.7785,172.99,172.95,5.7795]
[1747396377284,6.76466955,173.04,172.95,5.7795]
[1747396377586,6.76466955,173.04,172.9,6.76466955]
[1747396377782,5.7777,173.01,172.9,6.76466955]
[1747396377987,5.7777,173.01,172.93,6.76466955]
[1747396378178,5.7777,173.01,172.94,5.6067]
[1747396378479,5.7775,173.02,172.94,5.6067]
[1747396378676,5.7775,173.02,172.98,5.7785]
[1747396378984,5.7782,173.0,172.94,5.6067]
[1747396379386,5.7782,173.0,172.96,5.779]
[1747396379786,5.7782,173.0,172.94,5.6067]
[1747396380489,5.7778,173.01,172.98,5.7786]
[1747396381582,220.32960933,173.15,172.96,6.76466955]
[1747396381783,1.05571732,173.14,172.99,6.76466955]
[1747396381984,1.05571732,173.14,173.02,6.76466955]
[1747396382186,5.7743,173.11,173.03,3.6675]
[1747396382585,5.7743,173.11,173.07,5.7755]
[1747396382885,6.76466955,173.12,173.0,1.9029]
[1747396383082,6.76466955,173.09,173.0,1.9029]
[1747396383282,6.76466955,173.11,173.0,1.9029]
[1747396383678,6.76466955,173.11,173.0,7.6808]
[1747396383987,5.7764,173.05,173.0,1.9029]
[1747396384291,6.76466955,173.08,172.97,5.7789]
[1747396384490,5.7774,173.02,172.95,3.6675]
[1747396384891,5.7774,173.02,172.96,5.7791]
[1747396385383,6.76466955,173.05,172.96,5.7791]
[1747396386194,6.76466955,173.05,172.95,3.6675]
[1747396387092,5.7778,173.01,172.95,3.6675]
[1747396387292,6.76466955,173.05,172.95,3.6675]
[1747396388591,5.7774,173.02,172.96,5.7792]
[1747396388785,6.76466955,173.05,172.95,3.6675]
[1747396389287,5.7773,173.02,172.95,9.447]
[1747396389492,6.76466955,173.05,172.95,9.447]
[1747396389886,5.7779,173.01,172.95,9.447]
[1747396390193,6.76466955,173.05,172.95,9.447]
[1747396390194,6.76466955,173.05,172.95,3.6675]
[1747396390390,6.76466955,173.05,172.93,1.8794]
[1747396390391,5.7789,172.98,172.93,1.8794]
[1747396390595,5.7789,172.98,172.92,5.7805]
[1747396391095,6.76466955,173.02,172.91,5.7809]
[1747396391793,5.7793,172.97,172.91,5.7809]
[1747396392090,6.76466955,173.02,172.91,5.7809]
[1747396392392,5.7794,172.96,172.91,5.7809]
[1747396392593,6.76466955,172.99,172.86,11.2707]
[1747396392793,6.76466955,172.99,172.86,5.4881]
[1747396392997,5.7805,172.93,172.87,5.7823]
[1747396393389,6.76466955,172.99,172.87,5.7823]
[1747396393590,5.781,172.92,172.87,5.7823]
[1747396393791,6.76466955,172.99,172.86,11.2706]
[1747396394292,5.7812,172.91,172.86,11.2706]
[1747396394487,6.76466955,172.99,172.86,5.4881]
[1747396394694,5.782,172.88,172.86,3.6883]
[1747396394888,5.782,172.88,172.79,6.76466955]
[1747396395494,5.782,172.88,172.83,5.7835]
[1747396396092,5.7825,172.87,172.83,5.7835]
[1747396397902,5.7827,172.86,172.83,5.7835]
[1747396398199,6.76466955,172.96,172.82,5.7839]
[1747396398901,6.76466955,172.96,172.79,6.76466955]
[1747396399304,5.7821,172.88,172.79,6.76466955]
[1747396399606,58.16,172.87,172.79,6.76466955]
[1747396399900,58.16,172.86,172.83,5.7834]
[1747396400093,58.16,172.86,172.79,6.76466955]
[1747396400290,58.16,172.86,172.81,5.7843]
[1747396400506,63.9427,172.86,172.79,6.76466955]
[1747396400704,58.16,172.86,172.79,6.76466955]
[1747396402002,58.16,172.86,172.84,5.7831]
[1747396405303,58.16,172.86,172.81,5.7841]
[1747396405507,58.16,172.86,172.79,6.76466955]
[1747396405808,58.16,172.86,172.78,5.796]
[1747396406604,5.7839,172.83,172.79,5.7849]
[1747396406804,59.12,172.82,172.79,5.7849]
[1747396407604,59.12,172.82,172.8,5.7845]
[1747396408906,59.12,172.82,172.81,5.7843]
[1747396416308,499.78,172.9,172.79,6.76466955]
[1747396416511,59.14,172.89,172.82,6.76466955]
[1747396417207,64.9217,172.89,172.82,6.76466955]
[1747396417509,64.9217,172.89,172.86,5.7824]
[1747396418310,64.9217,172.89,172.87,5.7822]
[1747396419406,59.14,172.89,172.88,5.782]
[1747396419611,59.14,172.89,172.82,6.76466955]
[1747396420107,64.9217,172.89,172.82,6.76466955]
[1747396420410,5.7817,172.89,172.82,6.76466955]
[1747396420709,5.7823,172.87,172.79,6.76466955]
[1747396421108,59.14,172.88,172.79,6.76466955]
[1747396421408,64.9221,172.88,172.85,5.7828]
[1747396421611,59.14,172.88,172.79,6.76466955]
[1747396421804,5.7825,172.87,172.84,5.7832]
[1747396422812,5.7825,172.87,172.85,5.783]
[1747396423210,5.7825,172.87,172.79,6.76466955]
[1747396423407,5.7825,172.87,172.84,5.7832]
[1747396423810,5.7825,172.87,172.85,5.783]
[1747396424211,5.7825,172.87,172.79,6.76466955]
[1747396424913,5.7825,172.87,172.85,5.783]
[1747396425107,59.14,172.88,172.85,5.783]
[1747396425312,59.14,172.88,172.82,6.76466955]
[1747396425516,59.14,172.88,172.86,5.7824]
[1747396426409,59.14,172.88,172.87,5.7823]
[1747396427115,59.14,172.88,172.86,5.7825]
[1747396427313,64.922,172.88,172.86,5.7825]
[1747396427818,59.14,172.88,172.86,5.7825]
[1747396431212,59.14,172.88,172.87,5.7823]
[1747396432313,59.14,172.88,172.86,5.7826]
[1747396433819,59.14,172.88,172.87,5.7823]
[1747396434120,499.82,172.93,172.82,6.76466955]
[1747396434418,59.14,172.92,172.91,5.781]
[1747396435016,499.82,172.93,172.92,5.7807]
[1747396435416,558.94,172.93,172.92,5.7807]
[1747396435613,558.94,172.93,172.9,5.7811]
[1747396436319,558.94,172.93,172.91,5.781]
[1747396437515,558.94,172.93,172.87,3.8762]
[1747396438029,5.7807,172.92,172.89,5.7813]
[1747396438521,5.7807,172.92,172.87,3.8762]
[1747396438718,64.4007,172.92,172.87,3.8762]
[1747396439222,64.4007,172.92,172.9,5.7813]
[1747396439717,58.62,172.92,172.84,1.8803]
[1747396440322,5.7815,172.9,172.84,1.8803]
[1747396440526,58.62,172.92,172.84,1.8803]
[1747396440822,5.7821,172.88,172.84,1.8803]
[1747396441119,58.62,172.92,172.84,1.8803]
[1747396441921,5.7815,172.9,172.87,5.7821]
[1747396442418,58.62,172.92,172.84,1.8803]
[1747396442624,58.62,172.92,172.84,8.64496955]
[1747396442823,58.62,172.92,172.87,6.76466955]
[1747396443227,5.7801,172.94,172.87,6.76466955]
[1747396443427,58.62,172.95,172.87,6.76466955]
[1747396443627,5.7806,172.93,172.9,5.7811]
[1747396443928,58.62,172.95,172.85,58.62]
[1747396444227,5.7812,172.91,172.85,58.62]
[1747396444829,5.7812,172.91,172.88,5.7818]
[1747396446529,5.7808,172.92,172.88,5.7818]
[1747396446831,5.7808,172.92,172.85,58.62]
[1747396447022,5.7809,172.92,172.85,58.62]
[1747396448728,5.7809,172.92,172.88,5.7817]
[1747396449631,5.7809,172.92,172.84,1.8803]
[1747396451029,5.7809,172.92,172.89,5.7816]
[1747396452030,5.7809,172.92,172.88,5.7819]
[1747396452726,5.7812,172.91,172.84,1.8803]
[1747396452926,58.62,172.95,172.84,1.8803]
[1747396453430,5.7815,172.9,172.86,5.7825]
[1747396453629,64.4015,172.9,172.86,5.7825]
[1747396454133,5.7818,172.89,172.84,7.6633]
[1747396454320,5.7818,172.89,172.84,1.8803]
[1747396454631,5.7818,172.89,172.85,5.7828]
[1747396455433,64.4015,172.9,172.86,5.7826]
[1747396455926,58.62,172.9,172.82,62.387]
[1747396456431,58.62,172.9,172.86,5.7826]
[1747396456932,64.4014,172.9,172.86,5.7826]
[1747396457430,58.62,172.9,172.87,5.7823]
[1747396459038,64.4015,172.9,172.87,5.7823]
[1747396460437,58.62,172.93,172.82,62.387]
[1747396460931,58.62,172.93,172.83,11.5673]
[1747396461435,64.4003,172.93,172.9,5.7811]
[1747396461839,64.4003,172.93,172.84,1.9671]
[1747396462134,64.4003,172.93,172.9,5.7811]
[1747396462938,5.7818,172.89,172.82,62.387]
[1747396463240,58.62,172.89,172.85,5.7829]
[1747396463440,58.62,172.89,172.82,3.767]
[1747396463941,5.7827,172.86,172.82,9.5508]
[1747396464144,58.62,172.89,172.82,5.7838]
[1747396464341,58.62,172.89,172.78,6.76466955]
[1747396464641,65.38466955,172.89,172.77,3.88]
[1747396464942,5.7839,172.83,172.79,5.7849]
[1747396465336,58.62,172.84,172.77,3.88]
[1747396465546,58.62,172.84,172.79,5.7849]
[1747396466343,5.7838,172.83,172.79,5.7849]
[1747396466848,58.62,172.84,172.8,5.7847]
[1747396467046,58.62,172.84,172.77,3.88]
[1747396467247,58.62,172.84,172.8,5.7844]
[1747396467442,58.62,172.84,172.77,3.88]
[1747396467642,64.4035,172.84,172.77,3.88]
[1747396467843,64.4035,172.84,172.8,5.7846]
[1747396468558,58.62,172.84,172.77,3.88]
[1747396468850,58.62,172.84,172.78,6.76466955]
[1747396471056,58.62,172.84,172.81,5.7842]